Workbook

Sheet ESF
A1: INSTITUTO MUNICIPAL DE PLANEACIÓN DE IRAPUATO, GTO. Estado de Situación Financiera Al 31 de Diciembre de 2025 (Cifras en Pesos)
A2: Concepto | B2: 2025 | C2: 2024 | D2: Concepto | E2: 2025 | F2: 2024
A3: ACTIVO | D3: PASIVO
A4: Activo Circulante | D4: Pasivo Circulante
A5: Efectivo y Equivalentes | B5: 10,023,905 | C5: 8,480,864 | D5: Cuentas por Pagar a Corto Plazo | E5: 1,794,029 | F5: 790,763
A6: Derechos a Recibir Efectivo o Equivalentes | B6: 45,059 | C6: 44,509 | D6: Documentos por Pagar a Corto Plazo | E6: 0 | F6: 0
A7: Derechos a Recibir Bienes o Servicios | B7: 198,534 | C7: 0 | D7: Porción a Corto Plazo de la Deuda Pública a Largo Plazo | E7: 0 | F7: 0
A8: Inventarios | B8: 0 | C8: 0 | D8: Títulos y Valores a Corto Plazo | E8: 0 | F8: 0
A9: Almacenes | B9: 0 | C9: 0 | D9: Pasivos Diferidos a Corto Plazo | E9: 0 | F9: 0
A10: Estimación por Pérdida o Deterioro de Activos Circulantes | B10: 0 | C10: 0 | D10: Fondos y Bienes de Terceros en Garantía y/o Administración a Corto Plazo | E10: 0 | F10: 0
A11: Otros Activos Circulantes | B11: 0 | C11: 0 | D11: Provisiones a Corto Plazo | E11: 0 | F11: 0
D12: Otros Pasivos a Corto Plazo | E12: 0 | F12: 0
A13: Total de Activos Circulantes | B13: =SUM(B5:B11) -> 10,267,497 | C13: =SUM(C5:C11) -> 8,525,372
D14: Total de Pasivos Circulantes | E14: =SUM(E5:E12) -> 1,794,029 | F14: =SUM(F5:F12) -> 790,763
A15: Activo No Circulante
A16: Inversiones Financieras a Largo Plazo | B16: 0 | C16: 0 | D16: Pasivo No Circulante
A17: Derechos a Recibir Efectivo o Equivalentes a Largo Plazo | B17: 0 | C17: 0 | D17: Cuentas por Pagar a Largo Plazo | E17: 0 | F17: 3,429,030
A18: Bienes Inmuebles, Infraestructura y Construcciones en Proceso | B18: 0 | C18: 0 | D18: Documentos por Pagar a Largo Plazo | E18: 0 | F18: 0
A19: Bienes Muebles | B19: 9,520,308 | C19: 8,647,958 | D19: Deuda Pública a Largo Plazo | E19: 0 | F19: 0
A20: Activos Intangibles | B20: 1,841,057 | C20: 1,804,563 | D20: Pasivos Diferidos a Largo Plazo | E20: 0 | F20: 0
A21: Depreciación, Deterioro y Amortización Acumulada de Bienes | B21: -6,712,285 | C21: -5,267,409 | D21: Fondos y Bienes de Terceros en Garantía y/o Administración a Largo Plazo | E21: 0 | F21: 0
A22: Activos Diferidos | B22: 0 | C22: 0 | D22: Provisiones a Largo Plazo | E22: 0 | F22: 0
A23: Estimación por Pérdida o Deterioro de Activos no Circulantes | B23: 0 | C23: 0
A24: Otros Activos no Circulantes | B24: 0 | C24: 0 | D24: Total de Pasivos No Circulantes | E24: =SUM(E17:E22) -> 0 | F24: =SUM(F17:F22) -> 3,429,030
A26: Total de Activos No Circulantes | B26: =SUM(B16:B24) -> 4,649,081 | C26: =SUM(C16:C24) -> 5,185,112 | D26: Total del Pasivo | E26: =SUM(E24+E14) -> 1,794,029 | F26: =SUM(F14+F24) -> 4,219,793
A28: Total del Activo | B28: =B13+B26 -> 14,916,578 | C28: =C13+C26 -> 13,710,484 | D28: HACIENDA PÚBLICA/PATRIMONIO
D30: Hacienda Pública/Patrimonio Contribuido | E30: =SUM(E31:E33) -> 75,000 | F30: =SUM(F31:F33) -> 75,000
D31: Aportaciones | E31: 0 | F31: 0
D32: Donaciones de Capital | E32: 75,000 | F32: 75,000
D33: Actualización de la Hacienda Pública/Patrimonio | E33: 0 | F33: 0
D35: Hacienda Pública/Patrimonio Generado | E35: =SUM(E36:E40) -> 13,047,549 | F35: =SUM(F36:F40) -> 9,415,691
D36: Resultados del Ejercicio (Ahorro/ Desahorro) | E36: 3,741,710 | F36: 7,579,027
D37: Resultados de Ejercicios Anteriores | E37: 9,305,839 | F37: 1,836,665
D38: Revalúos | E38: 0 | F38: 0
D39: Reservas | E39: 0 | F39: 0
D40: Rectificaciones de Resultados de Ejercicios Anteriores | E40: 0 | F40: 0
D42: Exceso o Insuficiencia en la Actualización de la Hacienda Pública/Patrimonio | E42: =SUM(E43:E44) -> 0 | F42: =SUM(F43:F44) -> 0
D43: Resultado por Posición Monetaria | E43: 0 | F43: 0
D44: Resultado por Tenencia de Activos no Monetarios | E44: 0 | F44: 0
D46: Total Hacienda Pública/Patrimonio | E46: =SUM(E42+E35+E30) -> 13,122,549 | F46: =SUM(F42+F35+F30) -> 9,490,691
D48: Total del Pasivo y Hacienda Pública/Patrimonio | E48: =E46+E26 -> 14,916,578 | F48: =F46+F26 -> 13,710,484
A51: Bajo protesta de decir verdad declaramos que los Estados Financieros y sus notas, son razonablemente correctos y son responsabilidad del emisor.
